[Event "November 21 Early 2023"]
[Site "https://www.chess.com"]
[Date "2023.11.21"]
[Round "4"]
[White "SeLaPegoACualquiera"]
[Black "SmirnovAlexandrA"]
[Result "1/2-1/2"]
[Board "109"]
[TimeControl "180+1"]
[WhiteElo "2173"]
[BlackElo "2641"]
[WhiteClock "0:00:19"]
[BlackClock "0:00:09"]

1. e4 {[%clk 0:02:59]}  c5 {[%clk 0:02:56]} 2. Nf3 {[%clk 0:02:57]}  d6 {[%clk 0:02:56]} 3. d4 {[%clk 0:02:58]}  cxd4 {[%clk 0:02:57]} 4. c3 {[%clk 0:02:57]}  d3 {[%clk 0:02:57]} 5. Bxd3 {[%clk 0:02:56]}  Nf6 {[%clk 0:02:56]} 6. e5 {[%clk 0:02:54]}  dxe5 {[%clk 0:02:56]} 7. Nxe5 {[%clk 0:02:54]}  Nbd7 {[%clk 0:02:54]} 8. Bf4 {[%clk 0:02:48]}  e6 {[%clk 0:02:50]} 9. O-O {[%clk 0:02:47]}  Be7 {[%clk 0:02:49]} 10. Bc2 {[%clk 0:02:40]}  O-O {[%clk 0:02:48]} 11. Nd2 {[%clk 0:02:40]}  Nxe5 {[%clk 0:02:44]} 12. Bxe5 {[%clk 0:02:41]}  b6 {[%clk 0:02:44]} 13. Bxf6 {[%clk 0:02:33]}  Bxf6 {[%clk 0:02:45]} 14. Be4 {[%clk 0:02:33]}  Rb8 {[%clk 0:02:42]} 15. Nf3 {[%clk 0:02:21]}  Qc7 {[%clk 0:02:37]} 16. Qc2 {[%clk 0:02:10]}  g6 {[%clk 0:02:29]} 17. Rfd1 {[%clk 0:02:00]}  Ba6 {[%clk 0:02:19]} 18. h4 {[%clk 0:01:59]}  Rbd8 {[%clk 0:02:16]} 19. h5 {[%clk 0:01:57]}  Kg7 {[%clk 0:02:14]} 20. hxg6 {[%clk 0:01:55]}  hxg6 {[%clk 0:02:14]} 21. Rxd8 {[%clk 0:01:41]}  Rxd8 {[%clk 0:02:15]} 22. Rd1 {[%clk 0:01:41]}  Rxd1+ {[%clk 0:02:07]} 23. Qxd1 {[%clk 0:01:42]}  Qc4 {[%clk 0:02:07]} 24. Bb1 {[%clk 0:01:35]}  Bb7 {[%clk 0:02:04]} 25. Qd3 {[%clk 0:01:32]}  Qf4 {[%clk 0:01:51]} 26. Qe3 {[%clk 0:01:27]}  Qg4 {[%clk 0:01:39]} 27. Bd3 {[%clk 0:01:23]}  e5 {[%clk 0:01:36]} 28. Bf1 {[%clk 0:01:18]}  Qe6 {[%clk 0:01:28]} 29. b3 {[%clk 0:01:12]}  Qf5 {[%clk 0:01:20]} 30. Bd3 {[%clk 0:01:07]}  Qg4 {[%clk 0:01:18]} 31. Bf1 {[%clk 0:01:06]}  e4 {[%clk 0:01:15]} 32. Nd4 {[%clk 0:01:05]}  Qg5 {[%clk 0:01:11]} 33. Qxg5 {[%clk 0:01:01]}  Bxg5 {[%clk 0:00:45]} 34. Bc4 {[%clk 0:01:00]}  a6 {[%clk 0:00:36]} 35. a4 {[%clk 0:00:56]}  f5 {[%clk 0:00:36]} 36. Nc2 {[%clk 0:00:47]}  Bd2 {[%clk 0:00:35]} 37. Nb4 {[%clk 0:00:38]}  Bxc3 {[%clk 0:00:35]} 38. Nxa6 {[%clk 0:00:37]}  Kf6 {[%clk 0:00:33]} 39. Nb8 {[%clk 0:00:37]}  Ke7 {[%clk 0:00:30]} 40. Bb5 {[%clk 0:00:28]}  Kd6 {[%clk 0:00:30]} 41. Nd7 {[%clk 0:00:27]}  Bd4 {[%clk 0:00:29]} 42. Nf8 {[%clk 0:00:25]}  g5 {[%clk 0:00:29]} 43. Ng6 {[%clk 0:00:23]}  f4 {[%clk 0:00:28]} 44. Kf1 {[%clk 0:00:22]}  Bd5 {[%clk 0:00:26]} 45. b4 {[%clk 0:00:20]}  Bc3 {[%clk 0:00:21]} 46. a5 {[%clk 0:00:20]}  bxa5 {[%clk 0:00:20]} 47. bxa5 {[%clk 0:00:21]}  Bxa5 {[%clk 0:00:20]} 48. Be2 {[%clk 0:00:20]}  Bf7 {[%clk 0:00:19]} 49. Nf8 {[%clk 0:00:20]}  Ke7 {[%clk 0:00:16]} 50. Nh7 {[%clk 0:00:20]}  Bg6 {[%clk 0:00:13]} 51. Nxg5 {[%clk 0:00:20]}  Kf6 {[%clk 0:00:14]} 52. Nh3 {[%clk 0:00:19]}  Bc7 {[%clk 0:00:14]} 53. f3 {[%clk 0:00:20]}  e3 {[%clk 0:00:13]} 54. g3 {[%clk 0:00:18]}  fxg3 {[%clk 0:00:13]} 55. Kg2 {[%clk 0:00:18]}  Bc2 {[%clk 0:00:10]} 56. f4 {[%clk 0:00:18]}  Be4+ {[%clk 0:00:09]} 57. Bf3 {[%clk 0:00:19]}  Bxf3+ {[%clk 0:00:09]} 58. Kxf3 {[%clk 0:00:20]}  Kf5 {[%clk 0:00:09]} 59. Kxe3 {[%clk 0:00:19]}  g2 {[%clk 0:00:09]} 60. Kf2 {[%clk 0:00:18]}  Bxf4 {[%clk 0:00:09]} 61. Kxg2 {[%clk 0:00:19]} 1/2-1/2

[Event "November 21 Early 2023"]
[Site "https://www.chess.com"]
[Date "2023.11.21"]
[Round "4"]
[White "Quirke, Jeffrey"]
[Black "Weetik, Vjacheslav"]
[Result "0-1"]
[Board "110"]
[TimeControl "180+1"]
[WhiteFideId "2013029"]
[BlackFideId "4153472"]
[WhiteElo "2224"]
[BlackElo "2469"]
[WhiteTeam "USA"]
[BlackTeam "RUS"]
[WhiteClock "0:00:14"]
[BlackClock "0:01:00"]

1. e4 {[%clk 0:02:54]}  c6 {[%clk 0:02:59]} 2. d4 {[%clk 0:02:52]}  d5 {[%clk 0:03:00]} 3. exd5 {[%clk 0:02:50]}  cxd5 {[%clk 0:03:00]} 4. Bd3 {[%clk 0:02:51]}  Nf6 {[%clk 0:03:00]} 5. c3 {[%clk 0:02:49]}  Bg4 {[%clk 0:03:00]} 6. Be2 {[%clk 0:02:36]}  Bxe2 {[%clk 0:02:55]} 7. Qxe2 {[%clk 0:02:37]}  Nc6 {[%clk 0:02:55]} 8. Nf3 {[%clk 0:02:36]}  e6 {[%clk 0:02:54]} 9. Bf4 {[%clk 0:02:36]}  Be7 {[%clk 0:02:54]} 10. O-O {[%clk 0:02:33]}  O-O {[%clk 0:02:54]} 11. Nbd2 {[%clk 0:02:34]}  a6 {[%clk 0:02:46]} 12. a4 {[%clk 0:02:32]}  Rc8 {[%clk 0:02:44]} 13. Rfe1 {[%clk 0:02:29]}  Re8 {[%clk 0:02:44]} 14. h3 {[%clk 0:02:25]}  h6 {[%clk 0:02:40]} 15. Ne5 {[%clk 0:02:24]}  Nd7 {[%clk 0:02:20]} 16. Nxf7 {[%clk 0:01:58]}  Kxf7 {[%clk 0:02:20]} 17. Qxe6+ {[%clk 0:01:57]}  Kf8 {[%clk 0:02:20]} 18. Bxh6 {[%clk 0:01:57]}  Bf6 {[%clk 0:01:58]} 19. Qxe8+ {[%clk 0:01:30]}  Qxe8 {[%clk 0:01:58]} 20. Rxe8+ {[%clk 0:01:31]}  Rxe8 {[%clk 0:01:58]} 21. Be3 {[%clk 0:01:31]}  Na5 {[%clk 0:01:53]} 22. b4 {[%clk 0:01:20]}  Nc4 {[%clk 0:01:52]} 23. Nxc4 {[%clk 0:01:19]}  dxc4 {[%clk 0:01:53]} 24. a5 {[%clk 0:01:07]}  Bd8 {[%clk 0:01:41]} 25. Kf1 {[%clk 0:01:01]}  Nf6 {[%clk 0:01:41]} 26. Bf4 {[%clk 0:01:01]}  Nd5 {[%clk 0:01:41]} 27. Bd6+ {[%clk 0:01:01]}  Kf7 {[%clk 0:01:41]} 28. Rc1 {[%clk 0:01:00]}  Bg5 {[%clk 0:01:37]} 29. Rc2 {[%clk 0:00:59]}  Ke6 {[%clk 0:01:27]} 30. Be5 {[%clk 0:00:53]}  g6 {[%clk 0:01:20]} 31. g3 {[%clk 0:00:52]}  Kd7 {[%clk 0:01:19]} 32. Ke2 {[%clk 0:00:47]}  Bf6 {[%clk 0:01:10]} 33. f4 {[%clk 0:00:47]}  g5 {[%clk 0:01:10]} 34. Kf3 {[%clk 0:00:44]}  gxf4 {[%clk 0:01:10]} 35. Bxf4 {[%clk 0:00:41]}  Re1 {[%clk 0:01:03]} 36. h4 {[%clk 0:00:30]}  Rf1+ {[%clk 0:01:01]} 37. Kg4 {[%clk 0:00:28]}  Rxf4+ {[%clk 0:01:00]} 38. gxf4 {[%clk 0:00:14]}  Ne3+ {[%clk 0:01:00]} 0-1

[Event "November 21 Early 2023"]
[Site "https://www.chess.com"]
[Date "2023.11.21"]
[Round "4"]
[White "Llorente Zaro, Alfonso"]
[Black "Pinheiro, Iung Alicio de O."]
[Result "1-0"]
[Board "111"]
[TimeControl "180+1"]
[WhiteFideId "2254131"]
[BlackFideId "2104350"]
[WhiteElo "2485"]
[BlackElo "2283"]
[WhiteTeam "ESP"]
[BlackTeam "BRA"]
[WhiteClock "0:00:18"]
[BlackClock "0:00:00"]

1. Nf3 {[%clk 0:02:41]}  d5 {[%clk 0:02:57]} 2. b4 {[%clk 0:02:38]}  c6 {[%clk 0:02:41]} 3. Bb2 {[%clk 0:02:37]}  a5 {[%clk 0:02:39]} 4. a3 {[%clk 0:02:33]}  axb4 {[%clk 0:02:28]} 5. axb4 {[%clk 0:02:34]}  Rxa1 {[%clk 0:02:27]} 6. Bxa1 {[%clk 0:02:34]}  Na6 {[%clk 0:02:26]} 7. b5 {[%clk 0:02:28]}  cxb5 {[%clk 0:02:23]} 8. e3 {[%clk 0:02:29]}  Nc7 {[%clk 0:02:22]} 9. Nc3 {[%clk 0:02:19]}  Bd7 {[%clk 0:02:19]} 10. Qb1 {[%clk 0:02:18]}  e6 {[%clk 0:02:15]} 11. Nxb5 {[%clk 0:02:17]}  Nxb5 {[%clk 0:01:55]} 12. Bxb5 {[%clk 0:02:18]}  Bc6 {[%clk 0:01:51]} 13. Ne5 {[%clk 0:02:11]}  Qc7 {[%clk 0:01:49]} 14. Bxc6+ {[%clk 0:01:54]}  bxc6 {[%clk 0:01:47]} 15. Qa2 {[%clk 0:01:55]}  Ne7 {[%clk 0:01:25]} 16. O-O {[%clk 0:01:45]}  f6 {[%clk 0:01:25]} 17. Qa8+ {[%clk 0:01:43]}  Qc8 {[%clk 0:01:14]} 18. Qxc8+ {[%clk 0:01:42]}  Nxc8 {[%clk 0:01:15]} 19. Nxc6 {[%clk 0:01:42]}  Kd7 {[%clk 0:01:12]} 20. Nd4 {[%clk 0:01:40]}  e5 {[%clk 0:01:09]} 21. Nf3 {[%clk 0:01:39]}  Nb6 {[%clk 0:01:06]} 22. Rb1 {[%clk 0:01:36]}  Kc6 {[%clk 0:01:05]} 23. Bc3 {[%clk 0:01:32]}  Bd6 {[%clk 0:01:04]} 24. Kf1 {[%clk 0:01:24]}  g5 {[%clk 0:01:00]} 25. Ke2 {[%clk 0:01:24]}  h5 {[%clk 0:00:55]} 26. d3 {[%clk 0:01:22]}  h4 {[%clk 0:00:53]} 27. Nd2 {[%clk 0:01:21]}  Na4 {[%clk 0:00:43]} 28. Rb3 {[%clk 0:01:13]}  h3 {[%clk 0:00:39]} 29. g3 {[%clk 0:01:10]}  g4 {[%clk 0:00:39]} 30. e4 {[%clk 0:01:09]}  dxe4 {[%clk 0:00:27]} 31. Nxe4 {[%clk 0:01:05]}  Be7 {[%clk 0:00:28]} 32. Bb4 {[%clk 0:01:04]}  Bd8 {[%clk 0:00:27]} 33. Ra3 {[%clk 0:01:01]}  Nb6 {[%clk 0:00:23]} 34. c4 {[%clk 0:00:59]}  f5 {[%clk 0:00:23]} 35. Nc3 {[%clk 0:00:57]}  Re8 {[%clk 0:00:21]} 36. Ra5 {[%clk 0:00:53]}  Bc7 {[%clk 0:00:20]} 37. Rc5+ {[%clk 0:00:51]}  Kb7 {[%clk 0:00:20]} 38. Rb5 {[%clk 0:00:49]}  Kc6 {[%clk 0:00:20]} 39. Ba5 {[%clk 0:00:47]}  e4 {[%clk 0:00:17]} 40. Bxb6 {[%clk 0:00:42]}  Bxb6 {[%clk 0:00:16]} 41. Rxf5 {[%clk 0:00:42]}  exd3+ {[%clk 0:00:16]} 42. Kxd3 {[%clk 0:00:42]}  Rd8+ {[%clk 0:00:16]} 43. Nd5 {[%clk 0:00:41]}  Bc5 {[%clk 0:00:16]} 44. Rf6+ {[%clk 0:00:38]}  Kb7 {[%clk 0:00:16]} 45. Rf4 {[%clk 0:00:38]}  Ra8 {[%clk 0:00:15]} 46. Rxg4 {[%clk 0:00:38]}  Bxf2 {[%clk 0:00:15]} 47. Rh4 {[%clk 0:00:38]}  Ra2 {[%clk 0:00:14]} 48. Rxh3 {[%clk 0:00:36]}  Bg1 {[%clk 0:00:14]} 49. Rh7+ {[%clk 0:00:37]}  Kc6 {[%clk 0:00:14]} 50. h4 {[%clk 0:00:36]}  Rg2 {[%clk 0:00:12]} 51. Rg7 {[%clk 0:00:32]}  Bf2 {[%clk 0:00:11]} 52. Rg6+ {[%clk 0:00:28]}  Kc5 {[%clk 0:00:11]} 53. Nf6 {[%clk 0:00:28]}  Kb4 {[%clk 0:00:08]} 54. Ne4 {[%clk 0:00:28]}  Be1 {[%clk 0:00:08]} 55. h5 {[%clk 0:00:28]}  Rh2 {[%clk 0:00:08]} 56. g4 {[%clk 0:00:27]}  Rh4 {[%clk 0:00:07]} 57. Kd4 {[%clk 0:00:26]}  Rh1 {[%clk 0:00:04]} 58. Rb6+ {[%clk 0:00:26]}  Ka5 {[%clk 0:00:05]} 59. c5 {[%clk 0:00:25]}  Bb4 {[%clk 0:00:04]} 60. Rg6 {[%clk 0:00:18]}  Rd1+ {[%clk 0:00:03]} 61. Ke5 {[%clk 0:00:18]}  Re1 {[%clk 0:00:03]} 62. Kf5 {[%clk 0:00:18]}  Rf1+ {[%clk 0:00:02]} 63. Ke5 {[%clk 0:00:18]}  Re1 {[%clk 0:00:03]} 64. Kd5 {[%clk 0:00:18]}  Rd1+ {[%clk 0:00:03]} 65. Kc6 {[%clk 0:00:18]}  Re1 {[%clk 0:00:02]} 66. Re6 {[%clk 0:00:18]}  Rh1 {[%clk 0:00:00]} 67. h6 {[%clk 0:00:18]} 1-0

[Event "November 21 Early 2023"]
[Site "https://www.chess.com"]
[Date "2023.11.21"]
[Round "4"]
[White "Fiedorek, Michal"]
[Black "Aradhya, Garg"]
[Result "0-1"]
[Board "112"]
[TimeControl "180+1"]
[WhiteFideId "1199528"]
[BlackFideId "25006746"]
[WhiteElo "2135"]
[BlackElo "2323"]
[WhiteTeam "POL"]
[BlackTeam "IND"]
[WhiteClock "0:01:23"]
[BlackClock "0:01:50"]

1. e4 {[%clk 0:03:00]}  e5 {[%clk 0:02:59]} 2. Nf3 {[%clk 0:03:00]}  Nc6 {[%clk 0:03:00]} 3. Bb5 {[%clk 0:03:01]}  a6 {[%clk 0:03:00]} 4. Ba4 {[%clk 0:03:01]}  Nf6 {[%clk 0:02:57]} 5. O-O {[%clk 0:03:02]}  b5 {[%clk 0:02:55]} 6. Bb3 {[%clk 0:03:02]}  Bc5 {[%clk 0:02:56]} 7. c3 {[%clk 0:02:58]}  d6 {[%clk 0:02:56]} 8. a4 {[%clk 0:02:56]}  Bb7 {[%clk 0:02:54]} 9. d4 {[%clk 0:02:52]}  Bb6 {[%clk 0:02:53]} 10. Re1 {[%clk 0:02:49]}  O-O {[%clk 0:02:53]} 11. h3 {[%clk 0:02:43]}  Ne7 {[%clk 0:02:49]} 12. Bc2 {[%clk 0:02:38]}  Ng6 {[%clk 0:02:48]} 13. Nbd2 {[%clk 0:02:37]}  Re8 {[%clk 0:02:46]} 14. a5 {[%clk 0:02:32]}  Ba7 {[%clk 0:02:46]} 15. b3 {[%clk 0:02:21]}  d5 {[%clk 0:02:15]} 16. exd5 {[%clk 0:02:14]}  exd4 {[%clk 0:02:09]} 17. Rxe8+ {[%clk 0:02:13]}  Qxe8 {[%clk 0:02:09]} 18. Nxd4 {[%clk 0:02:12]}  Nxd5 {[%clk 0:02:06]} 19. Bb2 {[%clk 0:02:06]}  b4 {[%clk 0:02:02]} 20. cxb4 {[%clk 0:01:52]}  Nxb4 {[%clk 0:02:00]} 21. Bf5 {[%clk 0:01:41]}  Rd8 {[%clk 0:01:55]} 22. N2f3 {[%clk 0:01:41]}  Bxf3 {[%clk 0:01:52]} 23. gxf3 {[%clk 0:01:36]}  Bxd4 {[%clk 0:01:50]} 24. Bxd4 {[%clk 0:01:23]}  c5 {[%clk 0:01:50]} 0-1

[Event "November 21 Early 2023"]
[Site "https://www.chess.com"]
[Date "2023.11.21"]
[Round "4"]
[White "MKlose11"]
[Black "Ferreira, Vitor Hugo Vieira"]
[Result "0-1"]
[Board "114"]
[TimeControl "180+1"]
[BlackFideId "2119765"]
[WhiteElo "2662"]
[BlackElo "2123"]
[BlackTeam "BRA"]
[WhiteClock "0:00:03"]
[BlackClock "0:00:08"]

1. e4 {[%clk 0:02:57]}  c5 {[%clk 0:03:00]} 2. Nc3 {[%clk 0:02:57]}  d6 {[%clk 0:02:58]} 3. g3 {[%clk 0:02:58]}  g6 {[%clk 0:02:58]} 4. Bg2 {[%clk 0:02:58]}  Bg7 {[%clk 0:02:59]} 5. d3 {[%clk 0:02:58]}  Nc6 {[%clk 0:02:59]} 6. Be3 {[%clk 0:02:57]}  Rb8 {[%clk 0:02:59]} 7. Qd2 {[%clk 0:02:57]}  b5 {[%clk 0:02:59]} 8. Nge2 {[%clk 0:02:57]}  b4 {[%clk 0:02:59]} 9. Nd1 {[%clk 0:02:58]}  Nd4 {[%clk 0:02:59]} 10. O-O {[%clk 0:02:56]}  h5 {[%clk 0:02:59]} 11. h3 {[%clk 0:02:48]}  Bd7 {[%clk 0:02:29]} 12. f4 {[%clk 0:02:42]}  Qc8 {[%clk 0:02:28]} 13. Kh2 {[%clk 0:02:42]}  h4 {[%clk 0:02:25]} 14. g4 {[%clk 0:02:42]}  Nf6 {[%clk 0:02:05]} 15. f5 {[%clk 0:02:17]}  Nxe2 {[%clk 0:01:59]} 16. Qxe2 {[%clk 0:02:16]}  gxf5 {[%clk 0:01:58]} 17. exf5 {[%clk 0:02:11]}  Bc6 {[%clk 0:01:58]} 18. Rb1 {[%clk 0:01:55]}  Nd7 {[%clk 0:01:54]} 19. Bf4 {[%clk 0:01:48]}  Be5 {[%clk 0:01:53]} 20. Ne3 {[%clk 0:01:44]}  Bxg2 {[%clk 0:01:38]} 21. Qxg2 {[%clk 0:01:42]}  Qb7 {[%clk 0:01:39]} 22. Qe2 {[%clk 0:01:40]}  Bxf4+ {[%clk 0:01:36]} 23. Rxf4 {[%clk 0:01:39]}  Ne5 {[%clk 0:01:36]} 24. Nc4 {[%clk 0:01:29]}  f6 {[%clk 0:01:32]} 25. g5 {[%clk 0:01:23]}  fxg5 {[%clk 0:01:27]} 26. Re4 {[%clk 0:01:00]}  Nxc4 {[%clk 0:01:05]} 27. dxc4 {[%clk 0:01:01]}  Rh7 {[%clk 0:00:59]} 28. Re1 {[%clk 0:00:59]}  Kf8 {[%clk 0:00:47]} 29. Re6 {[%clk 0:00:53]}  d5 {[%clk 0:00:44]} 30. Qg4 {[%clk 0:00:29]}  Qc7+ {[%clk 0:00:35]} 31. R1e5 {[%clk 0:00:23]}  Rb6 {[%clk 0:00:33]} 32. Qxg5 {[%clk 0:00:13]}  Rg7 {[%clk 0:00:28]} 33. Qf4 {[%clk 0:00:13]}  dxc4 {[%clk 0:00:20]} 34. f6 {[%clk 0:00:09]}  Rf7 {[%clk 0:00:15]} 35. fxe7+ {[%clk 0:00:06]}  Qxe7 {[%clk 0:00:15]} 36. Qh6+ {[%clk 0:00:04]}  Kg8 {[%clk 0:00:10]} 37. Qg6+ {[%clk 0:00:01]}  Rg7 {[%clk 0:00:08]} 38. Qxg7+ {[%clk 0:00:01]}  Qxg7 {[%clk 0:00:08]} 39. Re8+ {[%clk 0:00:01]}  Kh7 {[%clk 0:00:07]} 40. R8e7 {[%clk 0:00:02]}  Rd6 {[%clk 0:00:06]} 41. Rxg7+ {[%clk 0:00:02]}  Kxg7 {[%clk 0:00:07]} 42. Rxc5 {[%clk 0:00:02]}  Rd2+ {[%clk 0:00:07]} 43. Kg1 {[%clk 0:00:03]}  Rxc2 {[%clk 0:00:08]} 44. Rc7+ {[%clk 0:00:03]}  Kf6 {[%clk 0:00:08]} 45. Rxa7 {[%clk 0:00:04]}  Ke5 {[%clk 0:00:08]} 46. Rc7 {[%clk 0:00:04]}  b3 {[%clk 0:00:08]} 47. axb3 {[%clk 0:00:03]}  cxb3 {[%clk 0:00:09]} 48. Rb7 {[%clk 0:00:04]}  Rxb2 {[%clk 0:00:09]} 49. Rb4 {[%clk 0:00:03]}  Kd5 {[%clk 0:00:06]} 50. Kf1 {[%clk 0:00:03]}  Kc5 {[%clk 0:00:06]} 51. Rxh4 {[%clk 0:00:02]}  Rc2 {[%clk 0:00:06]} 52. Rh5+ {[%clk 0:00:03]}  Kc4 {[%clk 0:00:06]} 53. Rh4+ {[%clk 0:00:03]}  Kc3 {[%clk 0:00:07]} 54. Rh8 {[%clk 0:00:03]}  b2 {[%clk 0:00:07]} 55. Rb8 {[%clk 0:00:04]}  Rc1+ {[%clk 0:00:07]} 56. Kf2 {[%clk 0:00:04]}  b1=Q {[%clk 0:00:08]} 57. Rxb1 {[%clk 0:00:04]}  Rxb1 {[%clk 0:00:09]} 58. Ke3 {[%clk 0:00:03]}  Rh1 {[%clk 0:00:08]} 0-1

[Event "November 21 Early 2023"]
[Site "https://www.chess.com"]
[Date "2023.11.21"]
[Round "4"]
[White "Wadsworth, Matthew J"]
[Black "Saravana, Krishnan P."]
[Result "0-1"]
[Board "117"]
[TimeControl "180+1"]
[WhiteFideId "415804"]
[BlackFideId "5018382"]
[WhiteElo "2266"]
[BlackElo "2167"]
[WhiteTeam "ENG"]
[BlackTeam "IND"]
[WhiteClock "0:00:00"]
[BlackClock "0:00:51"]

1. e4 {[%clk 0:03:00]}  c6 {[%clk 0:02:59]} 2. d4 {[%clk 0:02:59]}  d5 {[%clk 0:02:59]} 3. exd5 {[%clk 0:02:59]}  cxd5 {[%clk 0:02:59]} 4. Bd3 {[%clk 0:03:00]}  Nf6 {[%clk 0:02:58]} 5. c3 {[%clk 0:02:55]}  Bg4 {[%clk 0:02:55]} 6. Qb3 {[%clk 0:02:54]}  Qc7 {[%clk 0:02:53]} 7. h3 {[%clk 0:02:37]}  Bh5 {[%clk 0:02:52]} 8. Ne2 {[%clk 0:02:31]}  Bxe2 {[%clk 0:02:51]} 9. Bxe2 {[%clk 0:02:30]}  e6 {[%clk 0:02:43]} 10. Nd2 {[%clk 0:02:22]}  Nc6 {[%clk 0:02:42]} 11. Nf3 {[%clk 0:02:18]}  Bd6 {[%clk 0:02:42]} 12. O-O {[%clk 0:02:18]}  O-O {[%clk 0:02:41]} 13. Re1 {[%clk 0:02:11]}  Ne4 {[%clk 0:02:40]} 14. Bd3 {[%clk 0:02:08]}  f5 {[%clk 0:02:39]} 15. Bd2 {[%clk 0:01:37]}  a6 {[%clk 0:02:34]} 16. c4 {[%clk 0:01:35]}  Nxd2 {[%clk 0:02:20]} 17. Nxd2 {[%clk 0:01:33]}  Nxd4 {[%clk 0:02:20]} 18. Qc3 {[%clk 0:01:31]}  Be5 {[%clk 0:02:04]} 19. Rxe5 {[%clk 0:01:08]}  Qxe5 {[%clk 0:02:03]} 20. Kf1 {[%clk 0:01:08]}  Nc6 {[%clk 0:02:00]} 21. Qb3 {[%clk 0:00:58]}  Na5 {[%clk 0:01:50]} 22. Qb4 {[%clk 0:00:52]}  Nxc4 {[%clk 0:01:39]} 23. Nxc4 {[%clk 0:00:49]}  dxc4 {[%clk 0:01:39]} 24. Bxc4 {[%clk 0:00:47]}  Rfe8 {[%clk 0:01:35]} 25. Re1 {[%clk 0:00:46]}  Qc7 {[%clk 0:01:30]} 26. Bxe6+ {[%clk 0:00:27]}  Kh8 {[%clk 0:01:29]} 27. Bxf5 {[%clk 0:00:28]}  Rxe1+ {[%clk 0:01:28]} 28. Qxe1 {[%clk 0:00:27]}  Rf8 {[%clk 0:01:24]} 29. Kg1 {[%clk 0:00:23]}  Qf7 {[%clk 0:01:20]} 30. Be4 {[%clk 0:00:20]}  Re8 {[%clk 0:01:16]} 31. f3 {[%clk 0:00:16]}  Qxa2 {[%clk 0:01:16]} 32. Qc3 {[%clk 0:00:16]}  Qf7 {[%clk 0:01:15]} 33. Qb4 {[%clk 0:00:14]}  b5 {[%clk 0:01:14]} 34. Qa5 {[%clk 0:00:14]}  Qa7+ {[%clk 0:01:12]} 35. Kh2 {[%clk 0:00:14]}  h6 {[%clk 0:01:12]} 36. h4 {[%clk 0:00:11]}  Qe7 {[%clk 0:01:12]} 37. Kh3 {[%clk 0:00:11]}  Qe6+ {[%clk 0:01:11]} 38. Kh2 {[%clk 0:00:11]}  Rf8 {[%clk 0:01:10]} 39. Qc7 {[%clk 0:00:10]}  Qf6 {[%clk 0:01:08]} 40. Kh3 {[%clk 0:00:08]}  Qxb2 {[%clk 0:01:05]} 41. Qd6 {[%clk 0:00:05]}  Qf6 {[%clk 0:01:05]} 42. Qc7 {[%clk 0:00:06]}  b4 {[%clk 0:01:03]} 43. Qb7 {[%clk 0:00:06]}  Qe6+ {[%clk 0:01:00]} 44. g4 {[%clk 0:00:06]}  b3 {[%clk 0:00:57]} 45. Kg3 {[%clk 0:00:06]}  Qe5+ {[%clk 0:00:56]} 46. Kh3 {[%clk 0:00:06]}  b2 {[%clk 0:00:56]} 47. Qb4 {[%clk 0:00:00]}  Rb8 {[%clk 0:00:51]} 0-1

[Event "November 21 Early 2023"]
[Site "https://www.chess.com"]
[Date "2023.11.21"]
[Round "4"]
[White "Manukian, Artak"]
[Black "Weisz, Bryan"]
[Result "0-1"]
[Board "119"]
[TimeControl "180+1"]
[WhiteFideId "13301373"]
[BlackFideId "30934133"]
[WhiteElo "2030"]
[BlackElo "2437"]
[WhiteTeam "ARM"]
[BlackTeam "USA"]
[WhiteClock "0:00:08"]
[BlackClock "0:00:08"]

1. e4 {[%clk 0:03:00]}  c5 {[%clk 0:02:58]} 2. Nf3 {[%clk 0:02:59]}  Nc6 {[%clk 0:02:55]} 3. c3 {[%clk 0:02:48]}  d5 {[%clk 0:02:51]} 4. exd5 {[%clk 0:02:48]}  Qxd5 {[%clk 0:02:52]} 5. d4 {[%clk 0:02:49]}  cxd4 {[%clk 0:02:51]} 6. cxd4 {[%clk 0:02:50]}  Nf6 {[%clk 0:02:51]} 7. Nc3 {[%clk 0:02:50]}  Qa5 {[%clk 0:02:51]} 8. d5 {[%clk 0:02:48]}  Nb4 {[%clk 0:02:49]} 9. Bb5+ {[%clk 0:02:47]}  Bd7 {[%clk 0:02:48]} 10. Bxd7+ {[%clk 0:02:47]}  Nxd7 {[%clk 0:02:49]} 11. O-O {[%clk 0:02:44]}  g6 {[%clk 0:02:41]} 12. a3 {[%clk 0:02:38]}  Bg7 {[%clk 0:02:39]} 13. Re1 {[%clk 0:02:35]}  Bxc3 {[%clk 0:02:14]} 14. bxc3 {[%clk 0:02:30]}  Nxd5 {[%clk 0:02:14]} 15. Bh6 {[%clk 0:02:24]}  N7b6 {[%clk 0:01:58]} 16. Qd4 {[%clk 0:02:22]}  Qxc3 {[%clk 0:01:57]} 17. Qh4 {[%clk 0:02:15]}  f6 {[%clk 0:01:20]} 18. Rad1 {[%clk 0:02:00]}  Kf7 {[%clk 0:01:12]} 19. Qe4 {[%clk 0:01:49]}  Qc6 {[%clk 0:00:57]} 20. Nd4 {[%clk 0:01:35]}  Qd7 {[%clk 0:00:46]} 21. h4 {[%clk 0:01:25]}  Nc3 {[%clk 0:00:43]} 22. Qc2 {[%clk 0:01:11]}  Nxd1 {[%clk 0:00:42]} 23. Rxd1 {[%clk 0:01:12]}  Rhd8 {[%clk 0:00:38]} 24. h5 {[%clk 0:01:01]}  e5 {[%clk 0:00:35]} 25. Be3 {[%clk 0:00:54]}  exd4 {[%clk 0:00:33]} 26. Rxd4 {[%clk 0:00:51]}  Qe6 {[%clk 0:00:30]} 27. hxg6+ {[%clk 0:00:42]}  hxg6 {[%clk 0:00:30]} 28. Rh4 {[%clk 0:00:43]}  Rh8 {[%clk 0:00:26]} 29. Re4 {[%clk 0:00:34]}  Rac8 {[%clk 0:00:21]} 30. Qb1 {[%clk 0:00:29]}  Qd5 {[%clk 0:00:15]} 31. f3 {[%clk 0:00:29]}  Rhe8 {[%clk 0:00:13]} 32. Rd4 {[%clk 0:00:24]}  Qe6 {[%clk 0:00:09]} 33. Rd3 {[%clk 0:00:24]}  Nd5 {[%clk 0:00:07]} 34. Bd2 {[%clk 0:00:23]}  Ne7 {[%clk 0:00:06]} 35. Qxb7 {[%clk 0:00:21]}  Rcd8 {[%clk 0:00:06]} 36. Re3 {[%clk 0:00:18]}  Qd7 {[%clk 0:00:06]} 37. Qb3+ {[%clk 0:00:17]}  Qd5 {[%clk 0:00:07]} 38. Bb4 {[%clk 0:00:06]}  Qxb3 {[%clk 0:00:07]} 39. Rxb3 {[%clk 0:00:07]}  Nd5 {[%clk 0:00:06]} 40. Kf2 {[%clk 0:00:08]}  Nxb4 {[%clk 0:00:07]} 41. axb4 {[%clk 0:00:08]}  Rb8 {[%clk 0:00:08]} 42. Ra3 {[%clk 0:00:09]}  Re7 {[%clk 0:00:08]} 43. Rxa7 {[%clk 0:00:08]}  Rxa7 {[%clk 0:00:08]} 0-1